bitfinex/quotes_SOLUSD_20241103
["timestamp","ask_amount","ask_price","bid_price","bid_amount"]
[1730612754676,0.12017776,162.7,162.69,64.24277103]
[1730612754883,0.12017776,162.7,162.69,36.64474338]
[1730612755190,0.12017776,162.7,162.69,34.2557439]
[1730612756384,0.12017776,162.7,162.69,58.0326279]
[1730612757159,0.12017776,162.7,162.69,6.1466]
[1730612757974,0.12017776,162.7,162.68,15.3675]
[1730612758182,8.22932166,162.7,162.68,15.3675]
[1730612758683,8.22932166,162.7,162.66,6.1477]
[1730612758875,8.22932166,162.7,162.66,8.53588397]
[1730612759470,8.1091439,162.69,162.66,8.53588397]
[1730612759885,8.22932166,162.7,162.66,21.5171]
[1730612761188,8.22932166,162.7,162.66,15.3694]
[1730612762486,8.1091439,162.69,162.66,15.3694]
[1730612763295,8.22932166,162.7,162.66,15.3694]
[1730612763477,0.1252789,162.67,162.66,15.3694]
[1730612763678,0.1252789,162.67,162.66,23.90654437]
[1730612767382,0.1252789,162.67,162.66,15.3694]
[1730612767584,0.1252789,162.67,162.66,17.7595045]
[1730612769694,8.2344228,162.67,162.66,2.3901045]
[1730612769879,0.1252789,162.67,162.64,6.1484]
[1730612770091,0.1252789,162.67,162.64,8.53866203]
[1730612771384,0.1252789,162.67,162.64,23.90996203]
[1730612771592,0.1252789,162.67,162.65,8.53806203]
[1730612774307,0.1252789,162.67,162.65,32.01760593]
[1730612774598,0.1252789,162.67,162.66,10.49940593]
[1730612774986,0.1252789,162.67,162.66,2.39105174]
[1730612775492,0.1252789,162.67,162.66,8.53875174]
[1730612778600,0.1252789,162.67,162.66,8.53831473]
[1730612779389,0.1252789,162.67,162.66,2.39061473]
[1730612779705,0.1252789,162.67,162.65,15.3704]
[1730612783498,0.11805646,162.66,162.65,15.3704]
[1730612783897,0.11805646,162.66,162.65,17.76010421]
[1730612784211,0.11805646,162.66,162.65,15.3704]
[1730612785811,0.11805646,162.66,162.65,17.75976615]
[1730612786204,0.11805646,162.66,162.65,15.3704]
[1730612786915,8.22720036,162.66,162.62,21.5221]
[1730612787122,8.1091439,162.65,162.63,2.38885554]
[1730612788601,8.1091439,162.64,162.63,2.38885554]
[1730612789393,8.1091439,162.64,162.6,3.82326197]
[1730612789696,8.1091439,162.63,162.6,6.15]
[1730612793321,8.1091439,162.64,162.6,6.15]
[1730612793619,8.1091439,162.62,162.6,6.15]
[1730612793995,8.1091439,162.62,162.6,21.5251]
[1730612794200,6.1483,162.65,162.61,2.38808618]
[1730612794201,8.1091439,162.63,162.61,2.38808618]
[1730612795207,8.1091439,162.64,162.61,2.38808618]
[1730612795507,8.1091439,162.64,162.61,21.5236]
[1730612795725,8.1091439,162.64,162.62,2.38808618]
[1730612799603,8.1091439,162.64,162.62,8.53718618]
[1730612799799,8.1091439,162.64,162.62,6.1491]
[1730612800004,8.1091439,162.64,162.62,8.53978817]
[1730612800420,8.1091439,162.64,162.62,8.5405284]
[1730612803613,0.11458716,162.63,162.62,8.5405284]
[1730612806933,0.11458716,162.63,162.62,16.6496723]
[1730612807132,0.11458716,162.63,162.62,8.5405284]
[1730612809231,8.22373106,162.63,162.62,2.3914284]
[1730612810218,0.11458716,162.63,162.62,2.3914284]
[1730612810613,0.11458716,162.63,162.62,2.39325845]
[1730612814225,0.11458716,162.63,162.61,21.5237]
[1730612814743,0.11458716,162.63,162.62,2.39393367]
[1730612815922,0.11458716,162.63,162.62,2.3941397]
[1730612817416,8.22373106,162.63,162.62,2.3941397]
[1730612817623,8.22373106,162.63,162.61,2.3941397]
[1730612817834,8.22373106,162.63,162.62,2.3941397]
[1730612818030,8.22373106,162.63,162.61,2.39397663]
[1730612818337,8.22373106,162.63,162.62,2.39397663]
[1730612818639,8.22373106,162.63,162.61,2.39397663]
[1730612818839,8.22373106,162.63,162.62,2.39397663]
[1730612819041,8.22373106,162.63,162.61,2.39397663]
[1730612819234,8.22373106,162.63,162.62,2.39397663]
[1730612819437,0.11458716,162.63,162.61,2.39397663]
[1730612819628,0.11458716,162.63,162.62,2.39397663]
[1730612819830,0.11458716,162.63,162.61,2.39397663]
[1730612820020,0.11458716,162.63,162.62,2.39397663]
[1730612823147,0.11458716,162.63,162.62,8.54327663]
[1730612823626,0.23543263,162.63,162.62,56.44180453]
[1730612823820,0.23543263,162.63,162.62,60.27252055]
[1730612824548,0.12084547,162.63,162.62,60.27252055]
[1730612825031,0.12084547,162.63,162.62,64.10653294]
[1730612825231,0.12084547,162.63,162.62,60.27581692]
[1730612825951,0.13055357,162.64,162.62,60.27581692]
[1730612826244,0.13055357,162.64,162.63,6.22798902]
[1730612827036,0.13055357,162.64,162.63,12.37688902]
[1730612827431,8.23969747,162.64,162.63,6.22798902]
[1730612827640,8.23969747,162.64,162.63,2.39524445]
[1730612829349,14.38829747,162.64,162.6,2.39524445]
[1730612829550,8.1091439,162.61,162.6,2.39524445]
[1730612830449,8.1091439,162.61,162.58,2.39524445]
[1730612830636,8.1091439,162.6,162.59,2.39524445]
[1730612830838,8.1091439,162.6,162.58,2.39524445]
[1730612831027,8.1091439,162.59,162.57,0.92240187]
[1730612831226,0.1,162.62,162.58,2.39590148]
[1730612831447,8.1091439,162.59,162.57,0.92240187]
[1730612831634,8.1091439,162.58,162.57,0.92240187]
[1730612832658,8.1091439,162.58,162.52,2.69380998]
[1730612832946,8.1091439,162.53,162.52,0.2979085]
[1730612834135,8.1091439,162.54,162.52,0.2979085]
[1730612835541,0.2,162.59,162.52,0.2979085]
[1730612835542,8.1091439,162.53,162.52,0.2979085]
[1730612836556,8.1091439,162.54,162.52,0.2979085]
[1730612836955,8.1091439,162.53,162.52,0.2979085]
[1730612837650,14.2618439,162.53,162.52,0.2979085]
[1730612842957,8.1091439,162.53,162.52,0.2979085]
[1730612843663,8.2428519,162.53,162.52,0.2979085]
[1730612847453,14.3955519,162.53,162.52,0.2979085]
[1730612851571,14.4955519,162.53,162.52,0.2979085]
[1730612851764,14.4955519,162.53,162.44,0.2979085]
[1730612851765,0.1,162.48,162.44,0.2979085]
[1730612852062,8.1091439,162.45,162.44,0.2979085]
[1730612852248,0.1,162.43,162.36,0.2979085]
[1730612852637,8.1091439,162.39,162.36,0.2979085]
[1730612853243,8.1091439,162.38,162.36,0.2979085]
[1730612853966,8.1091439,162.39,162.36,0.2979085]
[1730612854261,8.1091439,162.37,162.34,0.92317095]
[1730612854459,8.1091439,162.35,162.34,0.92317095]
[1730612855655,8.1091439,162.36,162.34,0.92317095]
[1730612856244,8.1091439,162.35,162.32,6.1606]
[1730612856444,8.1091439,162.34,162.32,6.1606]
[1730612856845,8.1091439,162.33,162.31,16.5353]
[1730612857260,8.1091439,162.34,162.31,22.6962]
[1730612859467,0.2,162.41,162.32,8.1091439]
[1730612859764,8.1091439,162.38,162.32,8.1091439]
[1730612859968,8.1091439,162.37,162.31,46.2079439]
[1730612860265,81.68935055,162.46,162.31,46.2079439]
[1730612860266,8.1091439,162.39,162.33,8.1091439]
[1730612860571,8.1091439,162.38,162.32,8.1091439]
[1730612861552,8.1091439,162.37,162.33,21.5609]
[1730612862555,8.1091439,162.37,162.33,15.4007]
[1730612862759,8.1091439,162.38,162.33,15.4007]
[1730612862962,6.1573,162.41,162.33,15.4007]
[1730612862963,8.1091439,162.37,162.33,15.4007]
[1730612863271,8.1091439,162.36,162.33,15.4007]
[1730612863674,0.13485715,162.34,162.33,15.4007]
[1730612869461,0.13485715,162.34,162.33,23.5098439]
[1730612870275,0.13485715,162.34,162.33,29.6700439]
[1730612873685,0.13485715,162.34,162.33,53.4469279]
[1730612873862,0.13485715,162.34,162.33,73.4469279]
[1730612883589,0.24976003,162.34,162.33,73.4469279]
[1730612884470,0.11490288,162.34,162.33,73.4469279]
[1730612892775,0.11490288,162.34,162.33,49.6700439]
[1730612892980,0.11490288,162.34,162.33,41.5609]
[1730612893177,0.11490288,162.34,162.33,21.5609]
[1730612894279,0.11490288,162.34,162.33,15.4007]
[1730612898306,0.11490288,162.34,162.33,23.5098439]
[1730612899300,0.11490288,162.34,162.33,29.6700439]
[1730612902099,0.11490288,162.34,162.33,75.84247676]
[1730612902276,0.11490288,162.34,162.33,79.67472505]
[1730612903580,0.24923054,162.34,162.33,79.67472505]
[1730612904581,0.13432766,162.34,162.33,79.67472505]
[1730612906408,0.13432766,162.34,162.33,73.4469279]
[1730612906589,0.13432766,162.34,162.33,79.67790961]
[1730612910299,0.13432766,162.34,162.33,79.67818176]
[1730612914310,0.13432766,162.34,162.33,73.4469279]
[1730612914513,0.13432766,162.34,162.33,79.67961582]
[1730612915906,0.13432766,162.34,162.33,94.82621582]
[1730612917716,0.13432766,162.34,162.33,88.5935279]
[1730612917890,0.13432766,162.34,162.33,94.8221217]
[1730612918219,0.13432766,162.34,162.33,94.82203244]
[1730612918897,0.13392495,162.35,162.33,95.02203244]
[1730612919095,0.13392495,162.35,162.34,58.31453244]
[1730612919301,0.13392495,162.35,162.34,58.11453244]
[1730612920014,0.13392495,162.35,162.34,34.33764844]
[1730612921207,0.13392495,162.35,162.34,58.11453244]
[1730612921410,0.13392495,162.35,162.34,58.0459279]
[1730612921710,0.13392495,162.35,162.34,64.27487113]
[1730612923615,0.2638224,162.35,162.34,64.27487113]
[1730612924094,0.2638224,162.35,162.34,28.55551131]
[1730612924494,0.12989745,162.35,162.34,28.55551131]
[1730612924908,0.12989745,162.35,162.34,26.1599]
[1730612925111,0.12989745,162.35,162.34,36.6648518]
[1730612925308,0.12989745,162.35,162.34,36.66489772]
[1730612926317,0.12989745,162.35,162.34,6.1599]
[1730612927619,0.12989745,162.35,162.33,21.5609]
[1730612929531,0.12989745,162.35,162.33,15.4007]
[1730612929819,8.23904135,162.35,162.32,6.1606]
[1730612930897,8.23904135,162.35,162.3,21.5646]
[1730612931417,14.39864135,162.35,162.3,21.5646]
[1730612932010,0.12989745,162.35,162.31,8.1091439]
[1730612933018,0.12989745,162.35,162.32,21.5622]
[1730612940633,0.12989745,162.35,162.32,29.6713439]
[1730612941706,0.12989745,162.35,162.32,15.4016]
[1730612943109,0.12989745,162.35,162.32,21.5622]
[1730612943722,0.12745511,162.33,162.32,21.5622]
[1730612947620,0.12745511,162.33,162.32,29.6713439]
[1730612948020,0.12745511,162.33,162.32,15.4016]
[1730612948718,0.12745511,162.33,162.32,23.5107439]
[1730612950145,0.12745511,162.33,162.32,53.4482279]
[1730612952226,0.12745511,162.33,162.32,105.8848035]
[1730612952421,0.12745511,162.33,162.32,108.27607181]
[1730612952624,0.12745511,162.33,162.32,75.83949719]
[1730612952828,0.12745511,162.33,162.32,73.4482279]
[1730612954150,0.12745511,162.33,162.32,75.83961318]
[1730612955549,0.12745511,162.33,162.32,73.4482279]
[1730612957140,0.12745511,162.33,162.32,75.83983065]
[1730612958932,0.12745511,162.33,162.32,73.4482279]
[1730612963625,0.24838666,162.33,162.32,73.4482279]
[1730612964044,0.24838666,162.33,162.32,75.84144141]
[1730612964554,0.12093155,162.33,162.32,75.84144141]
[1730612966832,0.12093155,162.33,162.32,79.67349703]
[1730612967841,0.12093155,162.33,162.32,112.11089121]
[1730612969440,0.12493191,162.35,162.32,112.11089121]
[1730612969441,0.12493191,162.35,162.34,26.3599]
[1730612969758,0.11175325,162.36,162.35,43.876884]
[1730612970059,0.11175325,162.36,162.35,58.21211561]
[1730612970232,0.1124389,162.37,162.35,58.31211561]
[1730612970553,0.1124389,162.37,162.36,58.31211561]
[1730612970953,12.8484439,162.5,162.39,20.0]
[1730612971140,8.1091439,162.5,162.39,97.2193318]
[1730612971342,18.4092439,162.51,162.39,93.38871701]
[1730612971544,18.4092439,162.51,162.4,50.134484]
[1730612971737,18.4092439,162.51,162.4,93.07341701]
[1730612972142,18.4092439,162.51,162.4,92.97341701]
[1730612972551,18.4092439,162.51,162.4,93.07341701]
[1730612972755,18.4092439,162.51,162.4,92.97341701]
[1730612972957,18.4092439,162.51,162.4,93.07341701]
[1730612973146,18.4092439,162.51,162.4,93.06970821]
[1730612973352,18.4092439,162.51,162.4,90.6802035]
[1730612976060,8.1091439,162.5,162.4,90.4802035]
[1730612976262,8.1091439,162.49,162.4,58.0436279]
[1730612977155,8.1091439,162.49,162.4,90.4802035]
[1730612978243,14.2632439,162.5,162.4,90.5802035]
[1730612978446,18.4092439,162.51,162.4,90.5802035]
[1730612978751,18.4092439,162.51,162.4,90.6802035]
[1730612978953,18.4092439,162.51,162.4,90.5802035]
[1730612980466,18.4092439,162.51,162.4,90.6802035]
[1730612981871,24.5628439,162.51,162.4,90.4802035]
[1730612982256,8.1091439,162.49,162.4,90.4802035]
[1730612983651,0.26487049,162.41,162.4,90.4802035]
[1730612983959,0.26487049,162.41,162.4,58.0436279]
[1730612984649,0.13157306,162.41,162.4,58.0436279]
[1730612985371,0.13157306,162.41,162.4,90.4802035]
[1730612987066,0.13157306,162.41,162.4,58.0436279]
[1730612989256,0.13157306,162.41,162.4,34.2667439]
[1730612989671,0.13157306,162.41,162.4,14.2667439]
[1730612996258,0.13157306,162.41,162.4,6.1576]
[1730613001473,0.13157306,162.41,162.4,8.1091439]
[1730613002380,0.13157306,162.41,162.39,15.3946]
[1730613002381,0.13157306,162.41,162.39,23.5037439]
[1730613003287,0.13157306,162.41,162.39,21.5526]
[1730613003658,0.12059659,162.4,162.39,21.5526]
[1730613004868,0.12059659,162.4,162.39,15.3946]
[1730613007385,0.12059659,162.4,162.36,8.1091439]
[1730613007687,0.12059659,162.4,162.35,29.6674439]
[1730613008388,8.22974049,162.4,162.35,21.5583]
[1730613009286,8.1091439,162.39,162.35,21.5583]
[1730613009461,8.1091439,162.39,162.33,8.1091439]
[1730613009462,8.1091439,162.37,162.33,21.5607]
[1730613010486,8.1091439,162.37,162.33,15.4007]
[1730613011069,8.1091439,162.38,162.33,23.5098439]
[1730613011389,18.4092439,162.39,162.34,8.1091439]
[1730613011885,18.4092439,162.39,162.33,23.5098439]
[1730613012290,18.4092439,162.39,162.34,8.1091439]
[1730613012901,18.4092439,162.39,162.35,6.1595]
[1730613013668,8.1091439,162.38,162.35,6.1595]
[1730613014093,18.4092439,162.39,162.33,8.1091439]
[1730613014388,18.4092439,162.39,162.34,21.5596]
[1730613015285,8.1091439,162.38,162.34,21.5596]
[1730613016888,24.5672439,162.39,162.34,21.5596]
[1730613019174,24.5672439,162.39,162.34,23.5088439]
[1730613019988,24.5672439,162.39,162.34,15.3997]
[1730613020299,24.5672439,162.39,162.34,21.5596]
[1730613021476,24.5672439,162.39,162.34,23.5088439]
[1730613023004,24.5672439,162.39,162.34,29.6687439]
[1730613023691,0.1129581,162.35,162.34,29.6687439]
[1730613023900,0.1129581,162.35,162.34,21.5596]
[1730613024397,0.1129581,162.35,162.34,23.5088439]
[1730613024891,0.1129581,162.35,162.34,15.3997]
[1730613025397,0.1129581,162.35,162.34,23.5088439]
[1730613026996,0.1129581,162.35,162.34,29.6687439]
[1730613029676,0.1129581,162.35,162.34,21.5596]
[1730613035288,0.1129581,162.35,162.34,23.5088439]
[1730613036479,0.1129581,162.35,162.34,29.6687439]
[1730613036780,0.1129581,162.35,162.34,53.4456279]
[1730613036987,0.1129581,162.35,162.34,75.83723433]
[1730613037311,0.1129581,162.35,162.34,75.83709414]
[1730613039910,0.1129581,162.35,162.34,75.83803305]
[1730613040689,0.1129581,162.35,162.34,52.06114905]
[1730613040886,0.1129581,162.35,162.34,49.6687439]
[1730613041288,0.1129581,162.35,162.34,21.5596]
[1730613042994,0.1129581,162.35,162.34,15.3997]
[1730613043686,0.24467486,162.35,162.34,15.3997]
[1730613044509,0.13171676,162.35,162.34,15.3997]
[1730613052594,0.13171676,162.35,162.34,25.90643104]
[1730613052800,0.13171676,162.35,162.34,69.68331504]
[1730613053000,0.13171676,162.35,162.34,73.51945657]
[1730613053922,0.13171676,162.35,162.34,79.67935657]
[1730613058606,0.13171676,162.35,162.34,27.79332867]
[1730613058806,0.13171676,162.35,162.34,23.95718714]
[1730613059120,0.13171676,162.35,162.34,2.39758714]
[1730613059305,0.13171676,162.35,162.32,16.66703104]
[1730613059616,0.13171676,162.35,162.33,2.39758714]
[1730613060394,0.13171676,162.35,162.33,6.1602]
[1730613060592,0.13171676,162.35,162.33,8.55778714]
[1730613060820,0.13171676,162.35,162.33,6.1602]
[1730613061431,0.13171676,162.35,162.33,8.55755197]
[1730613062303,0.13171676,162.35,162.33,32.06739587]
[1730613062504,0.13171676,162.35,162.33,29.6700439]
[1730613063522,0.13171676,162.35,162.34,8.1091439]
[1730613063706,0.26406252,162.35,162.34,10.50606628]
[1730613064032,0.26406252,162.35,162.34,10.50609713]
[1730613064529,0.13234576,162.35,162.34,10.50609713]
[1730613064820,0.13234576,162.35,162.34,16.66599713]
[1730613065809,0.13234576,162.35,162.34,36.66599713]
[1730613066005,0.13234576,162.35,162.34,40.50120141]
[1730613071225,0.13234576,162.35,162.34,40.50030432]
[1730613071417,0.13234576,162.35,162.34,36.66554446]
[1730613071628,0.13234576,162.35,162.34,40.50029962]
[1730613075030,0.13234576,162.35,162.34,40.49912127]
[1730613075903,0.13234576,162.35,162.34,70.41770527]
[1730613076103,0.13234576,162.35,162.34,86.36650527]
[1730613076308,0.11338165,162.36,162.35,43.776884]
[1730613076521,0.11338165,162.36,162.35,58.31610527]
[1730613077541,0.13458573,162.37,162.36,0.1]
[1730613077721,0.11191372,162.38,162.37,58.0447279]
[1730613077915,0.11191372,162.38,162.37,64.27480527]
[1730613078231,6.1541,162.5,162.38,65.967384]
[1730613078403,12.8484439,162.51,162.39,58.11610527]
[1730613078609,19.0019439,162.51,162.39,54.27992143]
[1730613078927,14.2626439,162.51,162.4,43.776884]
[1730613079120,14.2626439,162.51,162.4,84.3226035]
[1730613079325,8.1091439,162.51,162.4,86.71649703]
[1730613079530,14.2626439,162.51,162.4,86.71649703]
[1730613080312,14.2626439,162.51,162.4,92.87409703]
[1730613080623,14.2626439,162.51,162.4,90.4802035]
[1730613080822,24.5623439,162.52,162.4,108.36625794]
[1730613081010,24.5623439,162.52,162.41,8.1091439]
[1730613081216,18.4092439,162.52,162.41,51.8860279]
[1730613081933,24.5623439,162.52,162.41,51.8860279]
[1730613082131,16.4532,162.52,162.41,51.8860279]
[1730613082331,16.4532,162.52,162.42,51.8860279]
[1730613082531,10.3001,162.52,162.42,51.8860279]
[1730613083639,10.3001,162.52,162.42,58.0428279]
[1730613083820,0.24328159,162.43,162.42,58.0428279]
[1730613084538,0.11328274,162.43,162.42,58.0428279]
[1730613087719,0.11328274,162.43,162.42,34.2659439]
[1730613088335,0.11328274,162.43,162.42,14.2659439]
[1730613088538,0.11328274,162.43,162.41,21.5502]
[1730613089032,0.11328274,162.43,162.41,15.3931]
[1730613090442,0.11328274,162.43,162.41,23.5022439]
[1730613091849,0.11328274,162.43,162.41,15.3931]
[1730613092032,0.11328274,162.43,162.41,21.5503]
[1730613094135,0.11328274,162.43,162.41,15.3931]
[1730613096046,0.11328274,162.43,162.42,8.1091439]
[1730613096254,0.11328274,162.43,162.38,8.1091439]
[1730613096438,8.22242664,162.43,162.38,8.1091439]
[1730613097519,0.11328274,162.43,162.4,8.1091439]
[1730613098633,0.11328274,162.43,162.4,14.2665439]
[1730613099746,10.3001,162.42,162.37,8.1091439]
[1730613099937,10.3001,162.42,162.32,32.4365756]
[1730613099938,8.1091439,162.41,162.36,8.1091439]
[1730613100455,8.1091439,162.4,162.35,8.1091439]
[1730613101046,14.2665439,162.41,162.36,6.1591]
[1730613103251,6.1574,162.41,162.36,8.1091439]
[1730613103743,0.1127074,162.37,162.36,8.1091439]
[1730613104464,0.1127074,162.37,162.36,6.1591]
[1730613104948,0.1127074,162.37,162.33,21.5609]
[1730613105749,14.3806513,162.37,162.32,8.1091439]
[1730613105966,14.3806513,162.37,162.32,14.2697439]
[1730613106456,6.2715074,162.37,162.32,14.2697439]
[1730613107755,0.1127074,162.37,162.33,8.1091439]
[1730613107934,0.1127074,162.37,162.34,8.1091439]
[1730613109252,0.1127074,162.37,162.34,6.1597]
[1730613110343,8.2218513,162.37,162.32,23.5107439]
[1730613110544,0.1127074,162.37,162.33,8.1091439]
[1730613111634,0.1127074,162.37,162.33,14.2690439]
[1730613113677,8.1091439,162.36,162.3,8.1091439]
[1730613114250,8.1091439,162.36,162.31,8.1091439]
[1730613114453,14.3807513,162.37,162.31,8.1091439]
[1730613114664,0.1127074,162.37,162.32,8.1091439]
[1730613115144,14.3807513,162.37,162.31,29.6725439]
[1730613115342,14.4807513,162.37,162.31,29.6725439]
[1730613116150,0.1,162.31,162.27,14.5695524]
[1730613117150,6.1608,162.32,162.27,14.5695524]
[1730613117362,0.1,162.31,162.27,14.5695524]
[1730613117961,14.2699439,162.32,162.27,14.5695524]
[1730613118135,0.1,162.31,162.27,14.5695524]
[1730613118755,14.2699439,162.32,162.27,14.5695524]
[1730613118953,0.1,162.31,162.27,14.5695524]
[1730613119251,0.1,162.31,162.27,6.4604085]
[1730613119452,14.2699439,162.32,162.27,6.4604085]
[1730613119658,0.1,162.31,162.27,6.4604085]
[1730613120355,14.2699439,162.32,162.27,6.4604085]
[1730613120579,6.261,162.31,162.27,6.4604085]
[1730613120937,6.261,162.31,162.27,14.5695524]
[1730613122059,0.1,162.31,162.27,14.5695524]
[1730613122768,0.1,162.31,162.27,6.4604085]
[1730613123244,8.1091439,162.29,162.27,0.2979085]
[1730613123642,0.1,162.28,162.27,0.2979085]
[1730613123838,0.11809773,162.28,162.27,0.2979085]
[1730613124355,6.28019773,162.28,162.27,0.2979085]
[1730613124762,14.48934163,162.28,162.27,0.2979085]
[1730613127047,14.58934163,162.28,162.27,0.2979085]
[1730613129758,14.48934163,162.28,162.27,0.2979085]
[1730613132044,14.58934163,162.28,162.27,0.2979085]
[1730613133656,8.1091439,162.21,162.19,0.2979085]
[1730613135166,14.2738439,162.22,162.19,0.2979085]
[1730613137158,8.1091439,162.23,162.19,0.2979085]
[1730613137350,8.1091439,162.23,162.19,6.4632085]
[1730613137654,8.1091439,162.23,162.19,21.8772085]
[1730613137851,8.1091439,162.22,162.19,15.7119085]
[1730613139163,8.1091439,162.21,162.19,15.7119085]
[1730613140154,6.1642,162.23,162.19,15.7119085]
[1730613140356,6.1642,162.23,162.19,21.8775085]
[1730613141566,8.1091439,162.23,162.19,21.8775085]
[1730613143368,14.2732439,162.23,162.19,21.8775085]
[1730613143765,0.11898561,162.2,162.19,21.8775085]
[1730613148963,0.11898561,162.2,162.19,0.2979085]
[1730613149168,8.22812951,162.2,162.19,0.2979085]
[1730613150360,0.11898561,162.2,162.19,0.2979085]
[1730613150872,8.22812951,162.2,162.19,0.2979085]
[1730613151090,14.39332951,162.2,162.19,0.2979085]
[1730613152187,8.22812951,162.2,162.19,0.2979085]
[1730613152876,0.11898561,162.2,162.19,0.2979085]
[1730613154263,8.22812951,162.2,162.19,0.2979085]
[1730613155391,14.39332951,162.2,162.19,0.2979085]
[1730613155682,0.11898561,162.2,162.19,0.2979085]
[1730613158267,8.22812951,162.2,162.19,0.2979085]
[1730613161880,34.39332951,162.2,162.19,0.2979085]
[1730613163384,34.49332951,162.2,162.19,0.2979085]
[1730613163887,34.61586681,162.2,162.19,0.2979085]
[1730613164468,34.51586681,162.2,162.19,0.2979085]
[1730613164673,34.3968812,162.2,162.19,0.2979085]
[1730613164871,34.4968812,162.2,162.19,0.2979085]
[1730613167075,34.3968812,162.2,162.19,0.2979085]
[1730613167272,34.4968812,162.2,162.19,0.2979085]
[1730613167489,34.5968812,162.2,162.19,0.2979085]
[1730613167797,8.1091439,162.12,162.11,0.2979085]
[1730613168295,8.2091439,162.12,162.11,0.2979085]
[1730613168486,8.1091439,162.12,162.11,0.2979085]
[1730613169287,34.2773439,162.12,162.11,0.2979085]
[1730613170172,34.3773439,162.12,162.11,0.2979085]
[1730613171180,14.3773439,162.12,162.11,0.2979085]
[1730613171492,34.2773439,162.12,162.11,0.2979085]
[1730613172496,8.1091439,162.12,162.11,0.2979085]
[1730613172694,14.2773439,162.12,162.11,0.2979085]
[1730613173072,8.1091439,162.12,162.11,0.2979085]
[1730613173597,14.2773439,162.12,162.11,0.2979085]
[1730613173975,8.1091439,162.12,162.11,0.2979085]
[1730613174582,14.2773439,162.12,162.11,0.2979085]
[1730613174987,14.3773439,162.12,162.11,0.2979085]
[1730613175190,14.2773439,162.12,162.11,0.2979085]
[1730613177802,8.1091439,162.12,162.11,0.2979085]
[1730613180406,8.1091439,162.14,162.11,6.4665085]
[1730613181509,6.2668,162.16,162.11,6.4665085]
[1730613181510,8.1091439,162.16,162.11,21.8881085]
[1730613181710,8.1091439,162.15,162.11,21.8881085]
[1730613182408,8.1091439,162.16,162.12,16.217]
[1730613183409,6.1663,162.17,162.12,16.217]
[1730613183410,8.1091439,162.15,162.12,16.217]
[1730613183789,0.13233111,162.13,162.12,22.3851]
[1730613184812,0.12343985,162.14,162.13,23.876884]
[1730613185007,0.12343985,162.14,162.13,31.9860279]
[1730613185195,0.12343985,162.14,162.12,43.8729]
[1730613186305,0.12343985,162.14,162.12,43.9729]
[1730613186505,0.12343985,162.14,162.13,31.8860279]
[1730613187393,0.1211316,162.16,162.15,20.2]
[1730613187606,0.12205034,162.2,162.19,23.776884]
[1730613187822,0.12205034,162.2,162.19,51.8860279]
[1730613188305,0.12205034,162.2,162.19,51.9860279]
[1730613188516,0.11957646,162.21,162.2,43.776884]
[1730613188819,0.11957646,162.21,162.2,51.9860279]
[1730613189710,0.11957646,162.21,162.2,58.1512279]
[1730613191604,8.1091439,162.31,162.23,23.876884]
[1730613191916,8.1091439,162.32,162.27,8.1091439]
[1730613192113,8.1091439,162.33,162.27,8.1091439]
[1730613192320,8.1091439,162.33,162.28,23.776884]
[1730613192491,8.1091439,162.34,162.28,31.8860279]
[1730613192692,6.2591,162.37,162.24,32.4365756]
[1730613192693,8.1091439,162.37,162.32,31.8860279]
[1730613193002,8.1091439,162.35,162.32,15.4012]
[1730613193591,6.2587,162.38,162.32,15.4012]
[1730613193792,12.76340818,162.35,162.32,15.4012]
[1730613194519,12.76340818,162.33,162.32,15.4012]
[1730613194895,12.76340818,162.33,162.31,6.161]
[1730613195704,12.76340818,162.33,162.3,12.5023]
[1730613196512,12.76340818,162.34,162.3,12.5023]
[1730613196904,12.76340818,162.34,162.3,27.9058]
[1730613198311,12.76340818,162.35,162.3,27.9058]
[1730613198818,12.76340818,162.37,162.31,12.76340818]
[1730613199002,12.76340818,162.36,162.3,40.66920818]
[1730613199204,12.76340818,162.35,162.3,40.66920818]
[1730613200810,12.76340818,162.36,162.3,40.66920818]
[1730613201705,12.76340818,162.35,162.3,40.66920818]
[1730613203316,12.76340818,162.36,162.3,40.66920818]
[1730613203915,0.12171165,162.31,162.3,64.44609218]
[1730613206907,0.12171165,162.31,162.3,84.54609218]
[1730613207110,0.12171165,162.31,162.3,97.30950036]
[1730613207503,0.12171165,162.31,162.3,84.54609218]
[1730613207707,0.12171165,162.31,162.3,84.44609218]
[1730613208429,0.12171165,162.31,162.3,84.54609218]
[1730613209012,0.12171165,162.31,162.3,84.44609218]
[1730613209243,0.12171165,162.31,162.3,84.54609218]
[1730613210320,0.12171165,162.31,162.3,84.44609218]
[1730613210522,0.12171165,162.31,162.3,84.54609218]
[1730613212638,0.12171165,162.31,162.3,84.44609218]
[1730613213837,0.12171165,162.31,162.3,79.84887372]
[1730613217027,0.12171165,162.31,162.3,73.50787372]
[1730613223819,0.25498515,162.31,162.3,73.50787372]
[1730613224540,0.1332735,162.31,162.3,73.50787372]
[1730613234226,0.1332735,162.31,162.3,29.73098972]